[Event "Late-Titled-Tuesday-Blitz-April-30-2024"]
[Site "Chess.com"]
[Date "2024.04.30"]
[Round "3"]
[White "scandalgod"]
[Black "Legendinunknown"]
[Result "0-1"]
[WhiteElo "2503"]
[BlackElo "2804"]
[TimeControl "180+1"]
[EndTime "14:32:48 PDT"]
[Termination "Legendinunknown won on time"]

1. d4 {[%clk 0:03:00.9]} 1... Nf6 {[%clk 0:02:59.1]} 2. c4 {[%clk 0:03:00.9]}
2... e6 {[%clk 0:02:59.1]} 3. g3 {[%clk 0:02:59.1]} 3... d5 {[%clk 0:02:58.5]}
4. Nf3 {[%clk 0:02:57.6]} 4... Bb4+ {[%clk 0:02:57.1]} 5. Bd2 {[%clk 0:02:57.2]}
5... Bd6 {[%clk 0:02:57.3]} 6. Qc2 {[%clk 0:02:56.1]} 6... O-O {[%clk
0:02:57.2]} 7. Bg2 {[%clk 0:02:55.1]} 7... c6 {[%clk 0:02:57.3]} 8. O-O {[%clk
0:02:53.4]} 8... Nbd7 {[%clk 0:02:57]} 9. Rd1 {[%clk 0:02:52]} 9... Ne4 {[%clk
0:02:56.9]} 10. b3 {[%clk 0:02:46.2]} 10... f5 {[%clk 0:02:56.4]} 11. Nc3 {[%clk
0:02:40.2]} 11... Qf6 {[%clk 0:02:55.7]} 12. Bc1 {[%clk 0:02:17.3]} 12... h6
{[%clk 0:02:37.8]} 13. Bb2 {[%clk 0:02:00.8]} 13... g5 {[%clk 0:02:37.3]} 14.
Rac1 {[%clk 0:01:56.8]} 14... h5 {[%clk 0:02:31.7]} 15. Qd3 {[%clk 0:01:48.5]}
15... h4 {[%clk 0:02:28.2]} 16. Qe3 {[%clk 0:01:36.4]} 16... h3 {[%clk
0:01:52.9]} 17. Bf1 {[%clk 0:01:26.7]} 17... g4 {[%clk 0:01:43]} 18. Nh4 {[%clk
0:01:22.4]} 18... Nxg3 {[%clk 0:01:11.9]} 19. hxg3 {[%clk 0:01:04.8]} 19... f4
{[%clk 0:01:09.9]} 20. Qd3 {[%clk 0:00:52.5]} 20... fxg3 {[%clk 0:01:08.3]} 21.
fxg3 {[%clk 0:00:51.9]} 21... Qf2+ {[%clk 0:01:01.1]} 22. Kh1 {[%clk 0:00:51.8]}
22... Rf6 {[%clk 0:00:54.1]} 23. e4 {[%clk 0:00:49.2]} 23... Qxg3 {[%clk
0:00:45.9]} 24. e5 {[%clk 0:00:47.1]} 24... Qxh4 {[%clk 0:00:31.6]} 25. exf6
{[%clk 0:00:46.9]} 25... Nxf6 {[%clk 0:00:28.8]} 26. Qg6+ {[%clk 0:00:43.6]}
26... Kf8 {[%clk 0:00:28.1]} 27. Rc2 {[%clk 0:00:41.1]} 27... Bd7 {[%clk
0:00:21.5]} 28. Bc1 {[%clk 0:00:38.2]} 28... Be8 {[%clk 0:00:16.7]} 29. Qh6+
{[%clk 0:00:33.7]} 29... Qxh6 {[%clk 0:00:16]} 30. Bxh6+ {[%clk 0:00:34.1]}
30... Kg8 {[%clk 0:00:15.1]} 31. Bg5 {[%clk 0:00:29.9]} 31... Nh5 {[%clk
0:00:14]} 32. Re2 {[%clk 0:00:20.2]} 32... Ng3+ {[%clk 0:00:13]} 33. Kg1 {[%clk
0:00:20.4]} 33... Nxe2+ {[%clk 0:00:13.6]} 34. Bxe2 {[%clk 0:00:20.8]} 34... Bh5
{[%clk 0:00:14]} 35. Rf1 {[%clk 0:00:18.6]} 35... Bb4 {[%clk 0:00:13.6]} 36. Nd1
{[%clk 0:00:16.7]} 36... c5 {[%clk 0:00:05.4]} 37. Ne3 {[%clk 0:00:15.4]} 37...
cxd4 {[%clk 0:00:05.7]} 38. Nxg4 {[%clk 0:00:15.1]} 38... Bxg4 {[%clk
0:00:04.9]} 39. Bxg4 {[%clk 0:00:15.3]} 39... dxc4 {[%clk 0:00:05.5]} 40. Bxe6+
{[%clk 0:00:15.3]} 40... Kg7 {[%clk 0:00:05.7]} 41. Bxc4 {[%clk 0:00:15.3]}
41... Re8 {[%clk 0:00:05.8]} 42. Bf6+ {[%clk 0:00:15.3]} 42... Kg6 {[%clk
0:00:05.6]} 43. Kh2 {[%clk 0:00:15.3]} 43... Bd6+ {[%clk 0:00:02]} 44. Kxh3
{[%clk 0:00:14.8]} 44... Re3+ {[%clk 0:00:02.7]} 45. Kg4 {[%clk 0:00:12.6]}
45... Rg3+ {[%clk 0:00:02.5]} 46. Kh4 {[%clk 0:00:12.8]} 46... d3 {[%clk
0:00:03]} 47. Bh8 {[%clk 0:00:08.6]} 47... Rg2 {[%clk 0:00:02.1]} 48. Bf7+
{[%clk 0:00:07.9]} 48... Kh7 {[%clk 0:00:02]} 49. Bc3 {[%clk 0:00:08.2]} 49...
d2 {[%clk 0:00:00.9]} 50. Rd1 {[%clk 0:00:07.9]} 50... Rh2+ {[%clk 0:00:01.7]}
51. Kg4 {[%clk 0:00:07.5]} 51... Rf2 {[%clk 0:00:02.6]} 52. Bc4 {[%clk 0:00:07]}
52... Kg6 {[%clk 0:00:03.2]} 53. Rxd2 {[%clk 0:00:06.9]} 53... Rf4+ {[%clk
0:00:03.9]} 54. Kh3 {[%clk 0:00:06.5]} 54... Rf3+ {[%clk 0:00:04.4]} 55. Kg2
{[%clk 0:00:06]} 55... Rg3+ {[%clk 0:00:05.1]} 56. Kf2 {[%clk 0:00:05.8]} 56...
Bf4 {[%clk 0:00:06]} 57. Rd3 {[%clk 0:00:04.7]} 57... Rg5 {[%clk 0:00:05.7]} 58.
Rf3 {[%clk 0:00:04.3]} 58... Bd6 {[%clk 0:00:05.5]} 59. Bd3+ {[%clk 0:00:04.9]}
59... Kh5 {[%clk 0:00:05.7]} 60. Bd2 {[%clk 0:00:05]} 60... Bc5+ {[%clk
0:00:05.6]} 61. Ke2 {[%clk 0:00:04.4]} 61... Rg2+ {[%clk 0:00:05.9]} 62. Kd1
{[%clk 0:00:04.9]} 62... Kg4 {[%clk 0:00:06.8]} 63. Rf4+ {[%clk 0:00:04.2]}
63... Kg3 {[%clk 0:00:07.1]} 64. Rc4 {[%clk 0:00:04.6]} 64... Rg1+ {[%clk
0:00:07.5]} 65. Be1+ {[%clk 0:00:05.1]} 65... Bf2 {[%clk 0:00:08.3]} 66. Re4
{[%clk 0:00:04.6]} 66... Kf3 {[%clk 0:00:08.9]} 67. Re2 {[%clk 0:00:04.4]} 67...
Be3 {[%clk 0:00:08.9]} 68. Bc4 {[%clk 0:00:03.6]} 68... a6 {[%clk 0:00:08.4]}
69. Bd5+ {[%clk 0:00:04.1]} 69... Kf4 {[%clk 0:00:08.9]} 70. Kc2 {[%clk
0:00:03.9]} 70... b5 {[%clk 0:00:08.7]} 71. Kd3 {[%clk 0:00:04.2]} 71... Bc5
{[%clk 0:00:08.7]} 72. Bd2+ {[%clk 0:00:04.4]} 72... Kf5 {[%clk 0:00:09.4]} 73.
Be4+ {[%clk 0:00:04.6]} 73... Kf6 {[%clk 0:00:10]} 74. Be3 {[%clk 0:00:04.9]}
74... Rg3 {[%clk 0:00:09.6]} 75. Kd2 {[%clk 0:00:05.2]} 75... Bb4+ {[%clk
0:00:10.1]} 76. Kc2 {[%clk 0:00:05.6]} 76... Ke5 {[%clk 0:00:10.7]} 77. Bd3
{[%clk 0:00:05.6]} 77... Kd5 {[%clk 0:00:11.3]} 78. Bc1 {[%clk 0:00:05.9]} 78...
Bc5 {[%clk 0:00:11.7]} 79. Bb2 {[%clk 0:00:06.3]} 79... Kc6 {[%clk 0:00:12.1]}
80. Be4+ {[%clk 0:00:06.6]} 80... Kb6 {[%clk 0:00:12.6]} 81. a3 {[%clk
0:00:06.6]} 81... a5 {[%clk 0:00:12.7]} 82. Bd3 {[%clk 0:00:05.3]} 82... Bd6
{[%clk 0:00:12]} 83. Bd4+ {[%clk 0:00:04.9]} 83... Kc7 {[%clk 0:00:12.1]} 84.
Bb2 {[%clk 0:00:05.3]} 84... Kc6 {[%clk 0:00:12.4]} 85. a4 {[%clk 0:00:05]}
85... bxa4 {[%clk 0:00:12.5]} 86. bxa4 {[%clk 0:00:05.9]} 86... Rg4 {[%clk
0:00:13.1]} 87. Bb5+ {[%clk 0:00:06.2]} 87... Kb6 {[%clk 0:00:13.5]} 88. Bc3
{[%clk 0:00:06.7]} 88... Bb4 {[%clk 0:00:13.4]} 89. Re6+ {[%clk 0:00:06.7]}
89... Kb7 {[%clk 0:00:13.7]} 90. Bc6+ {[%clk 0:00:05.9]} 90... Kc7 {[%clk
0:00:13.8]} 91. Be5+ {[%clk 0:00:05.9]} 91... Kb6 {[%clk 0:00:12.7]} 92. Bb5+
{[%clk 0:00:05.9]} 92... Kc5 {[%clk 0:00:12.8]} 93. Bd6+ {[%clk 0:00:06]} 93...
Kd5 {[%clk 0:00:13.1]} 94. Rh6 {[%clk 0:00:05.1]} 94... Bxd6 {[%clk 0:00:12.9]}
95. Rh5+ {[%clk 0:00:03.6]} 95... Be5 {[%clk 0:00:13.4]} 96. Rf5 {[%clk
0:00:03.3]} 96... Rg3 {[%clk 0:00:13.7]} 97. Kd2 {[%clk 0:00:03.4]} 97... Kd4
{[%clk 0:00:13]} 98. Rf8 {[%clk 0:00:03.4]} 98... Ke4 {[%clk 0:00:13.4]} 99. Ke2
{[%clk 0:00:03.8]} 99... Bf4 {[%clk 0:00:13]} 100. Kf1 {[%clk 0:00:04.3]} 100...
Rf3+ {[%clk 0:00:13.2]} 101. Ke2 {[%clk 0:00:03.8]} 101... Rc3 {[%clk
0:00:14.1]} 102. Kf2 {[%clk 0:00:04.3]} 102... Rc2+ {[%clk 0:00:14.3]} 103. Ke1
{[%clk 0:00:04.3]} 103... Rc1+ {[%clk 0:00:14.4]} 104. Ke2 {[%clk 0:00:04.3]}
104... Rc2+ {[%clk 0:00:15.1]} 105. Kd1 {[%clk 0:00:04.2]} 105... Rd2+ {[%clk
0:00:15]} 106. Ke1 {[%clk 0:00:04]} 106... Rd6 {[%clk 0:00:15.7]} 107. Re8+
{[%clk 0:00:03.5]} 107... Kf3 {[%clk 0:00:16]} 108. Be2+ {[%clk 0:00:02.1]}
108... Kg3 {[%clk 0:00:16.5]} 109. Bd1 {[%clk 0:00:01.8]} 109... Bd2+ {[%clk
0:00:15.6]} 110. Ke2 {[%clk 0:00:01.9]} 110... Bg5 {[%clk 0:00:16.3]} 111. Bb3
{[%clk 0:00:00.7]} 111... Rd2+ {[%clk 0:00:16.2]} 112. Ke1 {[%clk 0:00:01]}
112... Rb2 {[%clk 0:00:16.9]} 113. Bc4 {[%clk 0:00:01.1]} 113... Bf4 {[%clk
0:00:17]} 114. Bb5 {[%clk 0:00:00.7]} 114... Kf3 {[%clk 0:00:17.3]} 115. Kf1
{[%clk 0:00:01]} 115... Rb1+ {[%clk 0:00:17.4]} 116. Re1 {[%clk 0:00:01.9]}
116... Rb3 {[%clk 0:00:18]} 117. Rd1 {[%clk 0:00:02]} 117... Be3 {[%clk
0:00:17.7]} 118. Rd3 {[%clk 0:00:02.9]} 118... Rb1+ {[%clk 0:00:17.7]} 0-1

[Event "Late-Titled-Tuesday-Blitz-April-30-2024"]
[Site "Chess.com"]
[Date "2024.04.30"]
[Round "3"]
[White "Slovak_fighter2000"]
[Black "Yerkinio"]
[Result "1/2-1/2"]
[WhiteElo "2474"]
[BlackElo "2653"]
[TimeControl "180+1"]
[EndTime "14:33:05 PDT"]
[Termination "Game drawn by stalemate"]

1. d4 {[%clk 0:02:59.6]} 1... Nf6 {[%clk 0:02:59.2]} 2. Nf3 {[%clk 0:02:59]}
2... e6 {[%clk 0:02:59.6]} 3. c4 {[%clk 0:02:59.3]} 3... b6 {[%clk 0:02:59.2]}
4. a3 {[%clk 0:02:58.6]} 4... Bb7 {[%clk 0:02:57.9]} 5. Nc3 {[%clk 0:02:58.4]}
5... d5 {[%clk 0:02:58.5]} 6. cxd5 {[%clk 0:02:59.3]} 6... Nxd5 {[%clk 0:02:59]}
7. Qc2 {[%clk 0:02:59.1]} 7... Nxc3 {[%clk 0:02:57.4]} 8. bxc3 {[%clk 0:03:00]}
8... c5 {[%clk 0:02:55.8]} 9. e4 {[%clk 0:02:58.9]} 9... Nd7 {[%clk 0:02:52.3]}
10. Bd3 {[%clk 0:02:58.8]} 10... Qc7 {[%clk 0:02:52.8]} 11. Qe2 {[%clk
0:02:58.2]} 11... cxd4 {[%clk 0:02:49.8]} 12. O-O {[%clk 0:02:48.2]} 12... dxc3
{[%clk 0:02:46.7]} 13. Rd1 {[%clk 0:02:43.8]} 13... a6 {[%clk 0:02:28.4]} 14.
Be3 {[%clk 0:02:29.8]} 14... Bc5 {[%clk 0:02:20.2]} 15. Rdc1 {[%clk 0:02:17.3]}
15... Bxe3 {[%clk 0:02:19.9]} 16. Qxe3 {[%clk 0:02:18.2]} 16... O-O {[%clk
0:02:18.8]} 17. Rab1 {[%clk 0:01:45.5]} 17... Rac8 {[%clk 0:02:01]} 18. h4
{[%clk 0:01:45.2]} 18... b5 {[%clk 0:01:59.5]} 19. Rc2 {[%clk 0:01:32.7]} 19...
Qc5 {[%clk 0:01:54.1]} 20. Qc1 {[%clk 0:01:29.7]} 20... Ne5 {[%clk 0:01:50.7]}
21. Nxe5 {[%clk 0:01:26.7]} 21... Qxe5 {[%clk 0:01:51.6]} 22. Rb3 {[%clk
0:01:26.8]} 22... h6 {[%clk 0:01:38.6]} 23. Rbxc3 {[%clk 0:01:22.6]} 23... Rxc3
{[%clk 0:01:38.4]} 24. Rxc3 {[%clk 0:01:23.5]} 24... Rd8 {[%clk 0:01:27.8]} 25.
Qc2 {[%clk 0:01:09.8]} 25... Rd4 {[%clk 0:01:17.5]} 26. f3 {[%clk 0:01:06]}
26... g6 {[%clk 0:00:58.8]} 27. Qf2 {[%clk 0:00:49.2]} 27... Qd6 {[%clk
0:00:53]} 28. Bf1 {[%clk 0:00:47.5]} 28... Kg7 {[%clk 0:00:42.7]} 29. Qe3 {[%clk
0:00:45.4]} 29... e5 {[%clk 0:00:40.7]} 30. Kh2 {[%clk 0:00:41]} 30... Qe7
{[%clk 0:00:36.8]} 31. Kg3 {[%clk 0:00:40]} 31... Rd1 {[%clk 0:00:28.5]} 32. Qe2
{[%clk 0:00:33.1]} 32... Ra1 {[%clk 0:00:27.6]} 33. Qd3 {[%clk 0:00:28.2]} 33...
Qf6 {[%clk 0:00:24]} 34. Rc7 {[%clk 0:00:15.8]} 34... Bxe4 {[%clk 0:00:13.6]}
35. Qxe4 {[%clk 0:00:11.3]} 35... Rxf1 {[%clk 0:00:14.2]} 36. Rc5 {[%clk
0:00:07.4]} 36... Qf4+ {[%clk 0:00:12.5]} 37. Qxf4 {[%clk 0:00:06.4]} 37...
exf4+ {[%clk 0:00:13.4]} 38. Kxf4 {[%clk 0:00:06.6]} 38... Ra1 {[%clk
0:00:13.7]} 39. Rc3 {[%clk 0:00:06.5]} 39... Rh1 {[%clk 0:00:09.2]} 40. g3
{[%clk 0:00:06.7]} 40... Ra1 {[%clk 0:00:06.4]} 41. g4 {[%clk 0:00:06.2]} 41...
Ra2 {[%clk 0:00:06.3]} 42. Kg3 {[%clk 0:00:05.8]} 42... Ra1 {[%clk 0:00:04.2]}
43. Kf4 {[%clk 0:00:06.2]} 43... Ra2 {[%clk 0:00:03.9]} 44. Kg3 {[%clk
0:00:06.5]} 44... Rd2 {[%clk 0:00:04]} 45. Rc6 {[%clk 0:00:06.2]} 45... a5
{[%clk 0:00:02.6]} 46. Ra6 {[%clk 0:00:04.1]} 46... b4 {[%clk 0:00:02.9]} 47.
Rxa5 {[%clk 0:00:03.4]} 47... b3 {[%clk 0:00:03.5]} 48. Rb5 {[%clk 0:00:03.9]}
48... b2 {[%clk 0:00:03.5]} 49. a4 {[%clk 0:00:04.4]} 49... g5 {[%clk
0:00:02.3]} 50. hxg5 {[%clk 0:00:04.6]} 50... hxg5 {[%clk 0:00:02.5]} 51. Rxg5+
{[%clk 0:00:04.8]} 51... Kf6 {[%clk 0:00:03.3]} 52. Rb5 {[%clk 0:00:05.5]} 52...
Ke6 {[%clk 0:00:03.8]} 53. a5 {[%clk 0:00:05.7]} 53... Rc2 {[%clk 0:00:03.4]}
54. a6 {[%clk 0:00:05.8]} 54... Rc6 {[%clk 0:00:03.6]} 55. a7 {[%clk 0:00:04.8]}
55... Ra6 {[%clk 0:00:04]} 56. Rxb2 {[%clk 0:00:02.5]} 56... Rxa7 {[%clk
0:00:04.5]} 57. Rb6+ {[%clk 0:00:02.5]} 57... Ke7 {[%clk 0:00:04.9]} 58. Kf4
{[%clk 0:00:02.9]} 58... Kf8 {[%clk 0:00:05.3]} 59. Kg5 {[%clk 0:00:03.3]} 59...
Kg7 {[%clk 0:00:05.7]} 60. Kf4 {[%clk 0:00:03.3]} 60... Ra4+ {[%clk 0:00:05.1]}
61. Kg3 {[%clk 0:00:03.9]} 61... Ra3 {[%clk 0:00:05.7]} 62. g5 {[%clk
0:00:03.9]} 62... Rc3 {[%clk 0:00:05]} 63. Kg4 {[%clk 0:00:04.4]} 63... Rc1
{[%clk 0:00:05.3]} 64. f4 {[%clk 0:00:04.8]} 64... Rc4 {[%clk 0:00:05.1]} 65.
Rb5 {[%clk 0:00:04.5]} 65... Rd4 {[%clk 0:00:05.4]} 66. Kf5 {[%clk 0:00:04.7]}
66... Ra4 {[%clk 0:00:05.1]} 67. Rd5 {[%clk 0:00:05]} 67... Rb4 {[%clk
0:00:05.3]} 68. Ke5 {[%clk 0:00:05.6]} 68... Rb1 {[%clk 0:00:04.8]} 69. Rd7
{[%clk 0:00:05.2]} 69... Rb5+ {[%clk 0:00:04.8]} 70. Ke4 {[%clk 0:00:05.6]}
70... Rb4+ {[%clk 0:00:05]} 71. Rd4 {[%clk 0:00:06]} 71... Rb1 {[%clk
0:00:05.2]} 72. Kf5 {[%clk 0:00:06.4]} 72... Rb5+ {[%clk 0:00:05.3]} 73. Kg4
{[%clk 0:00:06.9]} 73... Rb1 {[%clk 0:00:06.2]} 74. Rd3 {[%clk 0:00:06.5]} 74...
Rb2 {[%clk 0:00:06.5]} 75. f5 {[%clk 0:00:05.8]} 75... Rg2+ {[%clk 0:00:05.7]}
76. Kf4 {[%clk 0:00:06.3]} 76... Rf2+ {[%clk 0:00:06.2]} 77. Rf3 {[%clk
0:00:05.7]} 77... Ra2 {[%clk 0:00:05.7]} 78. Kg4 {[%clk 0:00:06.3]} 78... Rg2+
{[%clk 0:00:05.2]} 79. Kf4 {[%clk 0:00:06.2]} 79... Ra2 {[%clk 0:00:04.7]} 80.
Re3 {[%clk 0:00:06.8]} 80... Rf2+ {[%clk 0:00:04.9]} 81. Ke5 {[%clk 0:00:07.1]}
81... Rg2 {[%clk 0:00:05]} 82. Kf4 {[%clk 0:00:06.1]} 82... Rf2+ {[%clk
0:00:05.4]} 83. Rf3 {[%clk 0:00:05.5]} 83... Rb2 {[%clk 0:00:05.9]} 84. Kg4
{[%clk 0:00:05.7]} 84... Rb4+ {[%clk 0:00:06.2]} 85. Rf4 {[%clk 0:00:05.9]}
85... Rb1 {[%clk 0:00:06.7]} 86. Rd4 {[%clk 0:00:05.4]} 86... Rg1+ {[%clk
0:00:06.8]} 87. Kf4 {[%clk 0:00:06]} 87... Rf1+ {[%clk 0:00:07.2]} 88. Ke5
{[%clk 0:00:06.7]} 88... Rg1 {[%clk 0:00:07.7]} 89. Kf4 {[%clk 0:00:05.7]} 89...
Rf1+ {[%clk 0:00:08.2]} 90. Kg4 {[%clk 0:00:05.8]} 90... Rg1+ {[%clk 0:00:08.7]}
91. Kh5 {[%clk 0:00:06.4]} 91... Rh1+ {[%clk 0:00:09.1]} 92. Rh4 {[%clk
0:00:06.7]} 92... Rf1 {[%clk 0:00:09.4]} 93. f6+ {[%clk 0:00:07]} 93... Kg8
{[%clk 0:00:09]} 94. Kh6 {[%clk 0:00:07.1]} 94... Rg1 {[%clk 0:00:08.5]} 95. Rh3
{[%clk 0:00:06.5]} 95... Rg2 {[%clk 0:00:08.7]} 96. Rh4 {[%clk 0:00:06.6]} 96...
Rg3 {[%clk 0:00:09.1]} 97. Kh5 {[%clk 0:00:07.1]} 97... Rg2 {[%clk 0:00:09.2]}
98. Rg4 {[%clk 0:00:06.9]} 98... Rh2+ {[%clk 0:00:09.4]} 99. Rh4 {[%clk
0:00:07.3]} 99... Rg2 {[%clk 0:00:09.9]} 100. Rc4 {[%clk 0:00:06.1]} 100... Rh2+
{[%clk 0:00:08.9]} 101. Kg4 {[%clk 0:00:06.7]} 101... Rg2+ {[%clk 0:00:09.3]}
102. Kf5 {[%clk 0:00:07.4]} 102... Rf2+ {[%clk 0:00:09.7]} 103. Rf4 {[%clk
0:00:07.8]} 103... Rg2 {[%clk 0:00:09.5]} 104. Rg4 {[%clk 0:00:07.8]} 104...
Rf2+ {[%clk 0:00:09.7]} 105. Ke4 {[%clk 0:00:07]} 105... Re2+ {[%clk 0:00:09.9]}
106. Kf3 {[%clk 0:00:07.4]} 106... Re1 {[%clk 0:00:10.1]} 107. Kf2 {[%clk
0:00:07.6]} 107... Ra1 {[%clk 0:00:09.9]} 108. Kg3 {[%clk 0:00:08.1]} 108...
Rg1+ {[%clk 0:00:08.3]} 109. Kh4 {[%clk 0:00:08.4]} 109... Rh1+ {[%clk
0:00:08.6]} 110. Kg3 {[%clk 0:00:08.9]} 110... Rg1+ {[%clk 0:00:09.2]} 111. Kh3
{[%clk 0:00:09.8]} 111... Rh1+ {[%clk 0:00:09.6]} 112. Kg2 {[%clk 0:00:10.1]}
112... Rb1 {[%clk 0:00:09.7]} 113. Rf4 {[%clk 0:00:08.1]} 113... Rb2+ {[%clk
0:00:09.2]} 114. Kg3 {[%clk 0:00:08.6]} 114... Rb1 {[%clk 0:00:09.4]} 115. Kg4
{[%clk 0:00:08.7]} 115... Rg1+ {[%clk 0:00:09.4]} 116. Kf5 {[%clk 0:00:09.3]}
116... Re1 {[%clk 0:00:09.8]} 117. g6 {[%clk 0:00:08.2]} 117... fxg6+ {[%clk
0:00:09.7]} 118. Kxg6 {[%clk 0:00:09.1]} 118... Rg1+ {[%clk 0:00:10.1]} 119. Kf5
{[%clk 0:00:09]} 119... Kf7 {[%clk 0:00:09.3]} 120. Rf3 {[%clk 0:00:08.8]}
120... Rg6 {[%clk 0:00:08.7]} 121. Ke5 {[%clk 0:00:09.2]} 121... Rg5+ {[%clk
0:00:09]} 122. Rf5 {[%clk 0:00:09.7]} 122... Rxf5+ {[%clk 0:00:08.7]} 123. Kxf5
{[%clk 0:00:10.6]} 123... Kf8 {[%clk 0:00:09.4]} 124. Kg6 {[%clk 0:00:11.5]}
124... Kg8 {[%clk 0:00:09.9]} 125. f7+ {[%clk 0:00:12.2]} 125... Kf8 {[%clk
0:00:10.6]} 126. Kf6 {[%clk 0:00:13.1]} 1/2-1/2

[Event "Late-Titled-Tuesday-Blitz-April-30-2024"]
[Site "Chess.com"]
[Date "2024.04.30"]
[Round "4"]
[White "Ajedrez_con_German"]
[Black "conformalfunction"]
[Result "1-0"]
[WhiteElo "2624"]
[BlackElo "2403"]
[TimeControl "180+1"]
[EndTime "14:36:25 PDT"]
[Termination "Ajedrez_con_German won by resignation"]

1. a3 {[%clk 0:03:00.9]} 1... g6 {[%clk 0:02:49.3]} 2. Nf3 {[%clk 0:02:59.1]}
2... Nf6 {[%clk 0:02:46.6]} 3. d4 {[%clk 0:02:58.8]} 3... Bg7 {[%clk 0:02:45.1]}
4. Bf4 {[%clk 0:02:58.7]} 4... d6 {[%clk 0:02:41.9]} 5. e3 {[%clk 0:02:59]} 5...
O-O {[%clk 0:02:42.3]} 6. h3 {[%clk 0:02:58.8]} 6... Nfd7 {[%clk 0:02:37.8]} 7.
Bh2 {[%clk 0:02:58.9]} 7... e5 {[%clk 0:02:36.7]} 8. Be2 {[%clk 0:02:59.2]} 8...
c6 {[%clk 0:02:31.9]} 9. O-O {[%clk 0:02:58.8]} 9... Re8 {[%clk 0:02:32.4]} 10.
c4 {[%clk 0:02:58.5]} 10... e4 {[%clk 0:02:26.8]} 11. Nfd2 {[%clk 0:02:58.2]}
11... d5 {[%clk 0:02:26.8]} 12. Nc3 {[%clk 0:02:58.1]} 12... Nf6 {[%clk
0:02:23.8]} 13. Rc1 {[%clk 0:02:57.6]} 13... Be6 {[%clk 0:02:24]} 14. cxd5
{[%clk 0:02:54.3]} 14... Bxd5 {[%clk 0:02:16.6]} 15. Nc4 {[%clk 0:02:46.1]}
15... Bxc4 {[%clk 0:02:02.5]} 16. Bxc4 {[%clk 0:02:45.7]} 16... Nbd7 {[%clk
0:02:02.9]} 17. Qb3 {[%clk 0:02:40.6]} 17... Qe7 {[%clk 0:01:52]} 18. Qxb7
{[%clk 0:02:38.9]} 18... c5 {[%clk 0:01:44.9]} 19. dxc5 {[%clk 0:02:25]} 19...
Nxc5 {[%clk 0:01:45.8]} 20. Qxe7 {[%clk 0:02:23.4]} 20... Rxe7 {[%clk
0:01:46.7]} 21. Bd6 {[%clk 0:02:22.5]} 21... Bf8 {[%clk 0:01:38.9]} 22. Bxc5
{[%clk 0:02:19.7]} 1-0

[Event "Late-Titled-Tuesday-Blitz-April-30-2024"]
[Site "Chess.com"]
[Date "2024.04.30"]
[Round "4"]
[White "FMalexhdez"]
[Black "Carlitus2004"]
[Result "0-1"]
[WhiteElo "2246"]
[BlackElo "2489"]
[TimeControl "180+1"]
[EndTime "14:36:31 PDT"]
[Termination "Carlitus2004 won by resignation"]

1. e4 {[%clk 0:03:00.9]} 1... e6 {[%clk 0:02:59.3]} 2. d4 {[%clk 0:02:59.9]}
2... a6 {[%clk 0:02:59.8]} 3. Nf3 {[%clk 0:02:58.8]} 3... d5 {[%clk 0:03:00.3]}
4. Nc3 {[%clk 0:02:57.9]} 4... Nf6 {[%clk 0:02:58.5]} 5. e5 {[%clk 0:02:54.2]}
5... Nfd7 {[%clk 0:02:58.7]} 6. g3 {[%clk 0:02:54.1]} 6... c5 {[%clk 0:02:58.9]}
7. dxc5 {[%clk 0:02:39]} 7... Nc6 {[%clk 0:02:57.9]} 8. Bf4 {[%clk 0:02:32.1]}
8... Bxc5 {[%clk 0:02:55.2]} 9. Qd2 {[%clk 0:02:24]} 9... h6 {[%clk 0:02:32.3]}
10. h4 {[%clk 0:02:22.9]} 10... b5 {[%clk 0:02:29.5]} 11. Bh3 {[%clk 0:02:21.1]}
11... Bb7 {[%clk 0:02:22.6]} 12. O-O {[%clk 0:02:16.3]} 12... Qb6 {[%clk
0:02:14.2]} 13. Nxd5 {[%clk 0:02:13.6]} 13... exd5 {[%clk 0:02:07.4]} 14. e6
{[%clk 0:02:13.5]} 14... fxe6 {[%clk 0:01:57]} 15. Bxe6 {[%clk 0:02:13.3]} 15...
O-O-O {[%clk 0:01:57.4]} 16. Qxd5 {[%clk 0:02:07.5]} 16... Nd4 {[%clk
0:01:30.7]} 17. Qe5 {[%clk 0:02:06.3]} 17... Nxf3+ {[%clk 0:01:30.5]} 0-1

[Event "Late-Titled-Tuesday-Blitz-April-30-2024"]
[Site "Chess.com"]
[Date "2024.04.30"]
[Round "4"]
[White "reevecanada"]
[Black "IngOscarArdila"]
[Result "1-0"]
[WhiteElo "2637"]
[BlackElo "2329"]
[TimeControl "180+1"]
[EndTime "14:36:34 PDT"]
[Termination "reevecanada won by resignation"]

1. e4 {[%clk 0:02:56.6]} 1... e5 {[%clk 0:03:00.1]} 2. Nf3 {[%clk 0:02:54.8]}
2... Nf6 {[%clk 0:03:00.1]} 3. Nxe5 {[%clk 0:02:52]} 3... d6 {[%clk 0:02:59.7]}
4. Nxf7 {[%clk 0:02:51]} 4... Kxf7 {[%clk 0:02:59.6]} 5. Bc4+ {[%clk 0:02:51.2]}
5... Be6 {[%clk 0:02:59.3]} 6. Bxe6+ {[%clk 0:02:51.1]} 6... Kxe6 {[%clk
0:03:00.2]} 7. O-O {[%clk 0:02:48.9]} 7... Kf7 {[%clk 0:03:00.1]} 8. Nc3 {[%clk
0:02:47.2]} 8... Be7 {[%clk 0:03:00.1]} 9. d4 {[%clk 0:02:46.8]} 9... Rf8 {[%clk
0:02:59.5]} 10. f4 {[%clk 0:02:42.8]} 10... Kg8 {[%clk 0:02:59.4]} 11. Be3
{[%clk 0:02:42.3]} 11... c5 {[%clk 0:02:57.9]} 12. dxc5 {[%clk 0:02:40.6]} 12...
dxc5 {[%clk 0:02:57.8]} 13. Qf3 {[%clk 0:02:41.1]} 13... Nc6 {[%clk 0:02:56.6]}
14. e5 {[%clk 0:02:40.7]} 14... Ne8 {[%clk 0:02:52.3]} 15. Rad1 {[%clk
0:02:39.7]} 15... Nd4 {[%clk 0:02:41.8]} 16. Qxb7 {[%clk 0:02:35.2]} 16... Rb8
{[%clk 0:02:37.6]} 17. Qxa7 {[%clk 0:02:31.6]} 17... Rxb2 {[%clk 0:02:35.3]} 18.
Bxd4 {[%clk 0:02:17.4]} 18... cxd4 {[%clk 0:02:32.5]} 19. Rxd4 {[%clk
0:02:16.5]} 19... Qc8 {[%clk 0:02:30]} 20. Qxe7 {[%clk 0:02:15.3]} 20... Qxc3
{[%clk 0:02:27.3]} 21. Qe6+ {[%clk 0:01:56.1]} 21... Kh8 {[%clk 0:02:25.1]} 22.
Rc4 {[%clk 0:01:53.7]} 22... Qe3+ {[%clk 0:02:22.8]} 23. Kh1 {[%clk 0:01:53.4]}
23... Qe4 {[%clk 0:02:09]} 24. Rxe4 {[%clk 0:01:51.6]} 1-0